[Event "75th Argentine Women-ch 2024"]
[Site "Buenos Aires"]
[Date "2024.11.22"]
[Round "2.1"]
[White "Campos, Maria Jose"]
[Black "Gaite, Karen Nerina"]
[Result "1-0"]
[ECO "E06"]
[WhiteElo "2272"]
[BlackElo "1997"]
[Annotator "RC"]
[PlyCount "57"]
[EventDate "2024.11.21"]
[EventType "swiss"]
[EventCountry "ARG"]
[SourceTitle "playchess.com"]
[Source "ChessBase"]
[SourceQuality "1"]
[TimeControl "5400+30"]

1. c4 {[%emt 0:00:15]} e6 {[%emt 0:00:08]} 2. Nf3 {[%emt 0:00:37]} Nf6 {[%emt 0:00:11]} 3. g3 {[%emt 0:00:16]} d5 {[%emt 0:00:10]} 4. d4 {[%emt 0:00:42]} Be7 {[%emt 0:00:23]} 5. Bg2 {[%emt 0:00:07]} O-O {[%emt 0:00:08]} 6. O-O {[%emt 0:00:05]} a5 {[%emt 0:00:15]} 7. Nc3 {[%emt 0:02:04]} dxc4 {[%emt 0:00:50]} 8. Ne5 {[%emt 0:02:11]} Nc6 {[%emt 0:00:14]} 9. Nxc6 {[%emt 0:01:33]} bxc6 {[%emt 0:00:18]} 10. Qa4 {[%emt 0:01:21]} Rb8 {[%emt 0:13:20]} 11. Rd1 {[%emt 0:01:45]} Nd5 {[%emt 0:03:16]} 12. Qxc4 {[%emt 0:02:40]} Rb6 {[%emt 0:07:41]} 13. Ne4 {[%emt 0:04:15]} Ba6 {[%emt 0:11:53]} 14. Qc2 {[%emt 0:00:23]} Nb4 {[%emt 0:03:33]} 15. Qd2 {[%emt 0:00:36]} f5 {[%emt 0:03:21]} 16. Nc3 {[%emt 0:02:06]} Nd5 {[%emt 0:04:58]} 17. Na4 {[%emt 0:04:35]} Rb8 {[%emt 0:05:01]} 18. Bf3 {[%emt 0:11:46]} Bb5 {[%emt 0:05:54]} 19. Nc3 {[%emt 0:03:44]} Bb4 {[%emt 0:03:16]} 20. Qc2 {[%emt 0:00:35]} Bxc3 {[%emt 0:12:37]} 21. bxc3 {[%emt 0:00:02]} Bc4 {[%emt 0:00:19]} 22. Ba3 {[%emt 0:00:33]} Re8 {[%emt 0:00:05]} 23. e4 {[%emt 0:04:12]} Ne7 {[%emt 0:02:07]} 24. exf5 {[%emt 0:05:41]} exf5 {[%emt 0:01:10]} 25. Bxe7 {[%emt 0:06:57]} Qxe7 {[%emt 0:03:38]} 26. Bxc6 {[%emt 0:00:41]} Qe2 {[%emt 0:09:12]} 27. Rd2 {[%emt 0:03:12]} Qh5 {[%emt 0:00:04]} 28. Qa4 {[%emt 0:03:22]} Re2 {[%emt 0:00:28]} 29. Qxc4+ {[%emt 0:00:13]} 1-0

[Event "75th Argentine Women-ch 2024"]
[Site "Buenos Aires"]
[Date "2024.11.23"]
[Round "2.2"]
[White "Zuriel, Marisa"]
[Black "Nejanky, Maisa"]
[Result "0-1"]
[ECO "B80"]
[WhiteElo "2163"]
[BlackElo "1928"]
[Annotator "RC"]
[PlyCount "104"]
[EventDate "2024.11.21"]
[EventType "swiss"]
[EventCountry "ARG"]
[SourceTitle "playchess.com"]
[Source "ChessBase"]
[SourceQuality "1"]
[TimeControl "5400+30"]

1. e4 {[%emt 0:00:06]} c5 {[%emt 0:00:06]} 2. Nf3 {[%emt 0:00:12]} d6 {[%emt 0:00:06]} 3. d4 {[%emt 0:00:13]} cxd4 {[%emt 0:00:05]} 4. Nxd4 {[%emt 0:00:05]} Nf6 {[%emt 0:00:04]} 5. Nc3 {[%emt 0:00:11]} Nc6 {[%emt 0:00:08]} 6. f3 {[%emt 1:32:43]} a6 {[%emt 0:05:12]} 7. Be3 {[%emt 0:00:30]} e6 {[%emt 0:08:03]} 8. Qd2 {[%emt 0:00:00]} Qc7 {[%emt 0:01:18]} 9. O-O-O {[%emt 0:01:00]} Be7 {[%emt 0:01:16]} 10. g4 {[%emt 0:00:30]} Na5 {[%emt 1:19:12]} 11. g5 {[%emt 0:00:00]} Nd7 {[%emt 0:00:00]} 12. Nf5 {[%emt 0:00:00]} exf5 {[%emt 0:00:00]} 13. Nd5 {[%emt 0:00:00]} Qd8 {[%emt 0:00:00]} 14. Nxe7 {[%emt 0:02:00]} Qxe7 {[%emt 0:00:00]} 15. Qxa5 {[%emt 0:00:00]} fxe4 {[%emt 0:00:00]} 16. f4 {[%emt 0:00:00]} O-O {[%emt 0:00:00]} 17. Qd5 {[%emt 0:00:00]} Nb8 {[%emt 0:00:00]} 18. Qxd6 {[%emt 0:00:00]} Qxd6 {[%emt 0:00:00]} 19. Rxd6 {[%emt 0:00:00]} Nc6 {[%emt 0:00:00]} 20. Bg2 {[%emt 0:00:00]} Re8 {[%emt 0:00:00]} 21. Re1 {[%emt 0:00:00]} Bg4 {[%emt 0:00:00]} 22. Bb6 {[%emt 0:00:00]} Bf5 {[%emt 0:00:00]} 23. Rd5 {[%emt 0:00:00]} g6 {[%emt 0:00:00]} 24. a3 {[%emt 0:00:00]} Rac8 {[%emt 0:00:00]} 25. Re3 {[%emt 0:00:00]} h6 {[%emt 0:00:00]} 26. gxh6 {[%emt 0:00:00]} Kh7 {[%emt 0:00:00]} 27. Rc5 {[%emt 0:00:00]} Re6 {[%emt 0:03:20]} 28. Rc4 {[%emt 0:00:21]} Rce8 {[%emt 0:00:13]} 29. Bd4 {[%emt 0:04:23]} b5 {[%emt 0:01:49]} 30. Rxc6 {[%emt 0:00:36]} Rxc6 {[%emt 0:00:01]} 31. Bg7 {[%emt 0:00:05]} Rd6 {[%emt 0:01:09]} 32. Be5 {[%emt 0:01:52]} Rde6 {[%emt 0:00:39]} 33. Bg7 {[%emt 0:00:06]} Rc6 {[%emt 0:00:51]} 34. c3 {[%emt 0:00:08]} f6 {[%emt 0:01:18]} 35. Bf1 {[%emt 0:01:06]} Rd8 {[%emt 0:02:20]} 36. Be2 {[%emt 0:00:09]} Kg8 {[%emt 0:00:32]} 37. h4 {[%emt 0:00:06]} Rd7 {[%emt 0:00:23]} 38. h5 {[%emt 0:01:53]} gxh5 {[%emt 0:00:11]} 39. Bxh5 {[%emt 0:00:06]} Rd3 {[%emt 0:00:53]} 40. Re1 {[%emt 0:01:31]} Rg3 {[%emt 0:00:32]} 41. Bd1 {[%emt 0:00:28]} Kh7 {[%emt 0:00:34]} 42. Bc2 {[%emt 0:00:17]} Re6 {[%emt 0:00:11]} 43. a4 {[%emt 0:00:13]} Rg4 {[%emt 0:00:48]} 44. axb5 {[%emt 0:00:12]} axb5 {[%emt 0:00:04]} 45. Rf1 {[%emt 0:00:19]} Rd6 {[%emt 0:00:48]} 46. Bf8 {[%emt 0:00:20]} Rd7 {[%emt 0:00:18]} 47. Bg7 {[%emt 0:01:11]} Ra7 {[%emt 0:00:50]} 48. Kb1 {[%emt 0:00:16]} Ra6 {[%emt 0:00:21]} 49. Bf8 {[%emt 0:00:14]} Rg2 {[%emt 0:00:30]} 50. Re1 {[%emt 0:01:30]} Rg8 {[%emt 0:00:34]} 51. Bg7 {[%emt 0:00:34]} Re8 {[%emt 0:00:36]} 52. Rg1 {[%emt 0:00:33]} Rea8 {[%emt 0:00:17]} 0-1

[Event "75th Argentine Women-ch 2024"]
[Site "Buenos Aires"]
[Date "2024.11.23"]
[Round "2.3"]
[White "Bosco, Giuliana"]
[Black "Adam, Ernestina"]
[Result "0-1"]
[ECO "B88"]
[WhiteElo "1953"]
[BlackElo "2154"]
[Annotator "RC"]
[PlyCount "96"]
[EventDate "2024.11.21"]
[EventType "swiss"]
[EventCountry "ARG"]
[SourceTitle "playchess.com"]
[Source "ChessBase"]
[SourceQuality "1"]
[TimeControl "5400+30"]

1. e4 {[%emt 0:00:03]} c5 {[%emt 0:00:05]} 2. Nc3 {[%emt 0:00:07]} Nc6 {[%emt 0:00:08]} 3. Nge2 {[%emt 0:00:16]} d6 {[%emt 0:01:24]} 4. d4 {[%emt 0:00:20]} cxd4 {[%emt 0:00:07]} 5. Nxd4 {[%emt 0:00:06]} Nf6 {[%emt 0:00:21]} 6. Bc4 {[%emt 0:01:41]} e6 {[%emt 1:31:25]} 7. Be3 {[%emt 0:11:12]} a6 {[%emt 0:00:30]} 8. f3 {[%emt 0:11:37]} Qc7 {[%emt 0:00:00]} 9. Bb3 {[%emt 0:03:09]} Be7 {[%emt 0:00:00]} 10. Qd2 {[%emt 0:04:17]} O-O {[%emt 0:00:00]} 11. O-O-O {[%emt 0:02:06]} Na5 {[%emt 0:00:00]} 12. g4 {[%emt 1:01:36]} b5 {[%emt 0:00:00]} 13. g5 {[%emt 0:00:00]} Nxb3+ {[%emt 0:00:00]} 14. Nxb3 {[%emt 0:00:00]} Nd7 {[%emt 0:00:00]} 15. Qd4 {[%emt 0:00:00]} Ne5 {[%emt 0:00:00]} 16. f4 {[%emt 0:00:00]} Nc4 {[%emt 0:00:00]} 17. Bf2 {[%emt 0:00:00]} Bd7 {[%emt 0:00:00]} 18. h4 {[%emt 0:00:00]} b4 {[%emt 0:00:00]} 19. Ne2 {[%emt 0:00:00]} Rfc8 {[%emt 0:00:00]} 20. Kb1 {[%emt 0:00:00]} e5 {[%emt 0:00:00]} 21. fxe5 {[%emt 0:00:00]} Bg4 {[%emt 0:00:00]} 22. exd6 {[%emt 0:00:00]} Bxd6 {[%emt 0:00:00]} 23. Qd3 {[%emt 0:00:00]} Rd8 {[%emt 0:00:00]} 24. Nbd4 {[%emt 0:00:00]} Rac8 {[%emt 0:00:00]} 25. h5 {[%emt 0:00:23]} Be5 {[%emt 0:00:00]} 26. Rh4 {[%emt 0:03:24]} Bxd4 {[%emt 0:04:09]} 27. Nxd4 {[%emt 0:00:08]} Bxd1 {[%emt 0:00:50]} 28. Qxd1 {[%emt 0:00:01]} Qe5 {[%emt 0:00:49]} 29. g6 {[%emt 0:01:37]} fxg6 {[%emt 0:01:45]} 30. hxg6 {[%emt 0:00:01]} h6 {[%emt 0:00:11]} 31. Ka1 {[%emt 0:03:06]} Qf6 {[%emt 0:01:55]} 32. Qg4 {[%emt 0:00:45]} Rc7 {[%emt 0:01:23]} 33. Rh1 {[%emt 0:00:33]} Rcd7 {[%emt 0:00:57]} 34. c3 {[%emt 0:00:13]} bxc3 {[%emt 0:00:23]} 35. bxc3 {[%emt 0:00:00]} Qxf2 {[%emt 0:00:58]} 36. Qe6+ {[%emt 0:00:08]} Kh8 {[%emt 0:00:25]} 37. Qxc4 {[%emt 0:00:05]} Rb8 {[%emt 0:00:25]} 38. Nb3 {[%emt 0:01:14]} a5 {[%emt 0:00:48]} 39. Qe6 {[%emt 0:00:52]} Rbd8 {[%emt 0:00:25]} 40. Qg4 {[%emt 0:00:43]} Qc2 {[%emt 0:00:23]} 41. Rc1 {[%emt 0:00:41]} Rd1 {[%emt 0:00:27]} 42. Qf4 {[%emt 0:00:23]} Qxc3+ {[%emt 0:00:09]} 43. Kb1 {[%emt 0:00:07]} Rxc1+ {[%emt 0:00:24]} 44. Qxc1 {[%emt 0:00:11]} Qb4 {[%emt 0:01:04]} 45. Qc5 {[%emt 0:00:38]} Qxe4+ {[%emt 0:00:16]} 46. Kb2 {[%emt 0:00:05]} a4 {[%emt 0:00:08]} 47. Qc7 {[%emt 0:00:16]} Re8 {[%emt 0:00:24]} 48. Nc5 {[%emt 0:00:09]} Qb4+ {[%emt 0:00:09]} 0-1

[Event "75th Argentine Women-ch 2024"]
[Site "Buenos Aires"]
[Date "2024.11.22"]
[Round "2.4"]
[White "Brizzi, Milagros Tatiana"]
[Black "Herrera, Solange"]
[Result "1-0"]
[ECO "A04"]
[WhiteElo "2114"]
[BlackElo "1880"]
[Annotator "RC"]
[PlyCount "71"]
[EventDate "2024.11.21"]
[EventType "swiss"]
[EventCountry "ARG"]
[SourceTitle "playchess.com"]
[Source "ChessBase"]
[SourceQuality "1"]
[TimeControl "5400+30"]

1. e4 {[%emt 0:00:05]} e6 {[%emt 0:00:21]} 2. d3 {[%emt 0:00:36]} c5 {[%emt 0:00:33]} 3. Nf3 {[%emt 0:00:54]} Nc6 {[%emt 0:00:38]} 4. g3 {[%emt 0:03:28]} g6 {[%emt 0:00:14]} 5. Bg2 {[%emt 1:27:57]} Bg7 {[%emt 1:31:14]} 6. O-O {[%emt 0:00:30]} Nge7 {[%emt 0:00:30]} 7. c3 {[%emt 0:00:30]} O-O {[%emt 0:00:30]} 8. d4 {[%emt 0:00:30]} cxd4 {[%emt 0:00:30]} 9. cxd4 {[%emt 0:00:30]} d5 {[%emt 0:00:30]} 10. e5 {[%emt 0:00:30]} f6 {[%emt 0:00:30]} 11. Re1 {[%emt 0:00:30]} Nf5 {[%emt 0:00:30]} 12. Nc3 {[%emt 0:00:30]} Qb6 {[%emt 0:00:30]} 13. Na4 {[%emt 0:00:30]} Qc7 {[%emt 0:00:30]} 14. exf6 {[%emt 0:00:30]} Bxf6 {[%emt 0:00:30]} 15. Bf4 {[%emt 0:00:30]} Qd8 {[%emt 0:00:30]} 16. Be5 {[%emt 0:00:30]} Bxe5 {[%emt 0:00:30]} 17. dxe5 {[%emt 0:00:30]} Bd7 {[%emt 0:00:30]} 18. Nc5 {[%emt 0:00:30]} b6 {[%emt 0:00:30]} 19. Nd3 {[%emt 0:00:30]} Rc8 {[%emt 0:00:30]} 20. Rc1 {[%emt 0:00:30]} Qe7 {[%emt 0:00:30]} 21. Qd2 {[%emt 0:00:30]} Nfd4 {[%emt 0:00:30]} 22. Nxd4 {[%emt 0:00:30]} Nxd4 {[%emt 0:00:30]} 23. Nf4 {[%emt 0:00:30]} Nf5 {[%emt 0:00:30]} 24. h4 {[%emt 0:00:30]} Rc5 {[%emt 0:00:30]} 25. b4 {[%emt 0:00:30]} Rcc8 {[%emt 0:00:30]} 26. a3 {[%emt 0:00:30]} Bb5 {[%emt 0:00:30]} 27. Rxc8 {[%emt 0:00:30]} Rxc8 {[%emt 0:00:30]} 28. Nxe6 {[%emt 0:00:30]} Bd7 {[%emt 0:00:30]} 29. Nf4 {[%emt 0:00:30]} d4 {[%emt 0:00:30]} 30. Nd5 {[%emt 0:00:30]} Qe6 {[%emt 0:00:30]} 31. Nf6+ {[%emt 0:00:30]} Kg7 {[%emt 0:00:30]} 32. Bd5 {[%emt 0:00:30]} Qe7 {[%emt 0:00:30]} 33. h5 {[%emt 0:00:30]} Be6 {[%emt 0:00:30]} 34. g4 {[%emt 0:00:30]} Bxd5 {[%emt 0:00:30]} 35. Nxd5 {[%emt 0:00:30]} Qe6 {[%emt 0:00:30]} 36. Nf4 {[%emt 0:00:30]} 1-0

[Event "75th Argentine Women-ch 2024"]
[Site "Buenos Aires"]
[Date "2024.11.23"]
[Round "2.5"]
[White "Maggiolo, Elisa"]
[Black "Amura, Claudia"]
[Result "1-0"]
[ECO "B33"]
[WhiteElo "1922"]
[BlackElo "2183"]
[Annotator "RC"]
[PlyCount "123"]
[EventDate "2024.11.21"]
[EventType "swiss"]
[EventCountry "ARG"]
[SourceTitle "playchess.com"]
[Source "ChessBase"]
[SourceQuality "1"]
[TimeControl "5400+30"]

1. e4 {[%emt 0:00:35]} c5 {[%emt 0:00:32]} 2. Nf3 {[%emt 0:00:30]} Nc6 {[%emt 0:00:16]} 3. d4 {[%emt 0:00:34]} cxd4 {[%emt 0:01:03]} 4. Nxd4 {[%emt 0:00:08]} e5 {[%emt 0:00:34]} 5. Nb5 {[%emt 0:00:36]} d6 {[%emt 0:00:30]} 6. N1c3 {[%emt 0:00:55]} a6 {[%emt 0:04:04]} 7. Na3 {[%emt 0:00:10]} b5 {[%emt 0:00:05]} 8. Nd5 {[%emt 0:01:05]} Nf6 {[%emt 0:01:37]} 9. Bg5 {[%emt 0:00:59]} Qa5+ {[%emt 0:00:42]} 10. c3 {[%emt 0:05:07]} Nxd5 {[%emt 0:09:28]} 11. Qxd5 {[%emt 0:06:42]} Bb7 {[%emt 0:04:42]} 12. Nc2 {[%emt 0:08:43]} Qc7 {[%emt 0:03:41]} 13. Qd2 {[%emt 0:10:53]} Be7 {[%emt 0:09:40]} 14. a4 {[%emt 0:05:31]} O-O {[%emt 0:10:30]} 15. Bd3 {[%emt 0:13:02]} Na5 {[%emt 0:07:18]} 16. Bxe7 {[%emt 0:06:59]} Qxe7 {[%emt 0:00:08]} 17. Qe2 {[%emt 0:00:41]} Nb3 {[%emt 0:07:45]} 18. Rd1 {[%emt 0:11:45]} bxa4 {[%emt 0:00:31]} 19. Ne3 {[%emt 0:02:05]} g6 {[%emt 0:00:18]} 20. Qg4 {[%emt 0:07:26]} Kh8 {[%emt 0:02:36]} 21. h4 {[%emt 0:01:06]} h5 {[%emt 0:09:40]} 22. Qf3 {[%emt 0:00:38]} f5 {[%emt 0:05:10]} 23. Qe2 {[%emt 0:02:08]} f4 {[%emt 0:04:04]} 24. Nd5 {[%emt 0:02:20]} Bxd5 {[%emt 0:03:25]} 25. exd5 {[%emt 0:00:02]} Rf6 {[%emt 0:01:11]} 26. Bxa6 {[%emt 0:08:25]} Nc5 {[%emt 0:00:05]} 27. Bd3 {[%emt 0:01:21]} e4 {[%emt 0:00:16]} 28. Bc2 {[%emt 0:00:07]} Rb8 {[%emt 0:01:36]} 29. Bb1 {[%emt 0:00:30]} f3 {[%emt 0:04:05]} 30. gxf3 {[%emt 0:00:56]} Rxf3 {[%emt 0:00:05]} 31. Rd4 {[%emt 0:00:49]} Rf4 {[%emt 0:00:33]} 32. Rb4 {[%emt 0:01:22]} Rbf8 {[%emt 0:01:29]} 33. Qe3 {[%emt 0:01:13]} Kh7 {[%emt 0:00:18]} 34. Rh2 {[%emt 0:01:28]} Qe5 {[%emt 0:02:06]} 35. Qd4 {[%emt 0:00:23]} Qe7 {[%emt 0:07:57]} 36. Qe3 {[%emt 0:01:16]} R8f5 {[%emt 0:00:00]} 37. Bc2 {[%emt 0:00:00]} Rxh4 {[%emt 0:00:00]} 38. Rxh4 {[%emt 0:00:02]} Qxh4 {[%emt 0:00:00]} 39. Bxe4 {[%emt 0:00:21]} Nxe4 {[%emt 0:00:00]} 40. Rxe4 {[%emt 0:00:02]} Qh1+ {[%emt 0:00:00]} 41. Ke2 {[%emt 0:00:17]} Rf7 {[%emt 0:00:21]} 42. c4 {[%emt 0:01:21]} Qb1 {[%emt 0:00:15]} 43. Re7 {[%emt 0:00:52]} Qxb2+ {[%emt 0:03:24]} 44. Kf1 Qf6 {[%emt 0:00:00]} 45. Re6 {[%emt 0:01:04]} Qa1+ {[%emt 0:00:00]} 46. Kg2 {[%emt 0:00:04]} a3 {[%emt 0:00:11]} 47. Rxd6 {[%emt 0:00:12]} Qb2 {[%emt 0:00:46]} 48. Rb6 {[%emt 0:00:34]} Qc2 {[%emt 0:00:02]} 49. Ra6 {[%emt 0:01:41]} a2 {[%emt 0:00:06]} 50. Qd4 {[%emt 0:00:00]} Qe2 {[%emt 0:00:37]} 51. Ra8 {[%emt 0:00:25]} Qf3+ {[%emt 0:00:38]} 52. Kg1 {[%emt 0:00:04]} g5 {[%emt 0:00:51]} 53. Rxa2 {[%emt 0:00:45]} Rb7 {[%emt 0:00:15]} 54. Rb2 {[%emt 0:00:43]} Re7 {[%emt 0:01:05]} 55. Rb1 {[%emt 0:00:15]} h4 {[%emt 0:00:01]} 56. Qd1 {[%emt 0:00:42]} Qf5 {[%emt 0:00:38]} 57. d6 {[%emt 0:00:12]} Rf7 {[%emt 0:00:14]} 58. Rb2 {[%emt 0:00:32]} Kh6 {[%emt 0:00:23]} 59. Qd4 {[%emt 0:00:34]} g4 {[%emt 0:00:32]} 60. Rb5 {[%emt 0:00:37]} Qg6 {[%emt 0:00:53]} 61. d7 {[%emt 0:00:33]} g3 {[%emt 0:00:06]} 62. Qxh4+ {[%emt 0:00:12]} 1-0

[Event "75th Argentine Women-ch 2024"]
[Site "Buenos Aires"]
[Date "2024.11.23"]
[Round "2.6"]
[White "Ramirez, Marysol"]
[Black "Montiel Marin, Micaela Agustina"]
[Result "1-0"]
[ECO "A45"]
[WhiteElo "1824"]
[BlackElo "1880"]
[Annotator "NA RC"]
[PlyCount "84"]
[EventDate "2024.11.21"]
[EventType "swiss"]
[EventCountry "ARG"]
[SourceTitle "playchess.com"]
[Source "ChessBase"]
[SourceQuality "1"]
[TimeControl "5400+30"]

1. d4 {[%emt 0:00:11]} Nf6 {[%emt 0:00:08]} 2. Bf4 {[%emt 0:00:15]} c5 {[%emt 1:31:22]} 3. e3 {[%emt 1:31:34]} Qb6 {[%emt 0:00:00]} 4. Na3 {[%emt 0:00:00]} d5 {[%emt 0:01:00]} 5. Nb5 {[%emt 0:00:00]} Na6 {[%emt 0:00:00]} 6. a4 {[%emt 0:00:00]} Qa5+ {[%emt 0:00:00]} 7. c3 {[%emt 0:02:00]} c4 {[%emt 0:01:30]} 8. b4 {[%emt 0:00:30]} Qb6 {[%emt 0:00:30]} 9. Nf3 {[%emt 0:00:30]} Ne4 {[%emt 0:00:30]} 10. Ne5 {[%emt 0:00:00]} Bf5 {[%emt 0:00:00]} 11. f3 {[%emt 0:00:00]} Nf6 {[%emt 0:00:00]} 12. e4 {[%emt 0:00:00]} dxe4 {[%emt 0:00:00]} 13. Bxc4 {[%emt 0:00:00]} e6 {[%emt 0:00:00]} 14. a5 {[%emt 0:00:00]} Qd8 {[%emt 0:00:00]} 15. Qa4 {[%emt 0:00:00]} Nd7 {[%emt 0:00:00]} 16. Na3 {[%emt 0:00:00]} Nab8 {[%emt 0:00:00]} 17. g4 {[%emt 0:00:00]} Bg6 {[%emt 0:00:00]} 18. Nb5 {[%emt 0:04:30]} Qf6 $18 {[%emt 0:00:00]} (18... Qc8 19. Nxg6 hxg6) 19. Bg3 {[%emt 0:00:00]} Kd8 {[%emt 0:00:00]} 20. Nc7 {[%emt 0:00:00]} Nxe5 {[%emt 0:00:00]} 21. Bxe5 {[%emt 0:00:00]} Qe7 {[%emt 0:00:00]} 22. Nxa8 {[%emt 0:00:01]} Nc6 {[%emt 0:00:00]} 23. Bg3 {[%emt 0:00:31]} Qg5 {[%emt 0:00:00]} 24. O-O {[%emt 0:00:54]} exf3 {[%emt 0:00:00]} 25. Rxf3 {[%emt 0:01:24]} Qxg4 {[%emt 0:00:00]} 26. Rf4 {[%emt 0:00:18]} Qg5 {[%emt 0:00:00]} 27. Kf2 {[%emt 0:00:12]} Qh6 {[%emt 0:00:00]} 28. a6 {[%emt 0:01:40]} Bd6 {[%emt 0:09:30]} 29. Rf3 {[%emt 0:00:30]} Bxg3+ {[%emt 0:00:00]} 30. hxg3 {[%emt 0:00:30]} Qh2+ {[%emt 0:01:00]} 31. Ke1 {[%emt 0:00:30]} Qg1+ {[%emt 0:00:30]} 32. Bf1 {[%emt 0:00:30]} Be4 {[%emt 0:00:30]} 33. Rf2 {[%emt 0:00:30]} Qxg3 {[%emt 0:00:30]} 34. Qa3 {[%emt 0:00:30]} Kd7 {[%emt 0:00:30]} 35. axb7 {[%emt 0:00:00]} Rb8 {[%emt 0:00:00]} 36. c4 {[%emt 0:00:11]} Qh4 {[%emt 0:00:03]} 37. b5 {[%emt 0:00:37]} Nxd4 {[%emt 0:00:39]} 38. Rd1 {[%emt 0:00:08]} e5 {[%emt 0:00:10]} 39. Rxd4+ {[%emt 0:00:43]} exd4 {[%emt 0:00:11]} 40. Qxa7 {[%emt 0:00:06]} Rxb7 {[%emt 0:00:53]} 41. Qxd4+ {[%emt 0:00:22]} Kc8 {[%emt 0:00:57]} 42. Qc5+ {[%emt 0:01:03]} Kd7 {[%emt 0:01:07]} 1-0

[Event "75th Argentine Women-ch 2024"]
[Site "Buenos Aires"]
[Date "2024.11.23"]
[Round "2.7"]
[White "Quiroga Ortiz, Isabella"]
[Black "Bossero, Ingrid"]
[Result "1/2-1/2"]
[ECO "C86"]
[WhiteElo "1508"]
[BlackElo "1694"]
[Annotator "NA RC"]
[PlyCount "109"]
[EventDate "2024.11.21"]
[EventType "swiss"]
[EventCountry "ARG"]
[SourceTitle "playchess.com"]
[Source "ChessBase"]
[SourceQuality "1"]
[TimeControl "5400+30"]

1. e4 {[%emt 0:00:02]} e5 {[%emt 0:00:06]} 2. Nf3 {[%emt 0:00:10]} Nc6 {[%emt 0:00:13]} 3. Bb5 {[%emt 0:00:14]} a6 {[%emt 0:00:08]} 4. Ba4 {[%emt 0:00:06]} Nf6 {[%emt 0:00:11]} 5. Qe2 {[%emt 1:32:28]} b5 {[%emt 0:01:16]} 6. Bb3 {[%emt 0:00:00]} Be7 {[%emt 0:00:40]} 7. O-O {[%emt 0:00:00]} O-O {[%emt 0:00:20]} 8. c3 {[%emt 0:00:00]} d6 {[%emt 0:01:38]} 9. d3 {[%emt 0:00:00]} Bg4 {[%emt 0:02:35]} 10. Nbd2 {[%emt 0:00:00]} Qd7 {[%emt 0:15:24]} 11. Rd1 {[%emt 0:00:00]} Rad8 {[%emt 0:01:28]} 12. Nf1 {[%emt 0:00:00]} d5 {[%emt 0:08:06]} 13. Ne3 {[%emt 0:00:00]} d4 {[%emt 0:14:24]} 14. Nxg4 {[%emt 0:00:00]} Qxg4 {[%emt 0:00:29]} 15. cxd4 {[%emt 0:00:00]} Nxd4 {[%emt 0:04:13]} 16. Nxd4 {[%emt 0:00:00]} Rxd4 {[%emt 0:00:34]} 17. Qxg4 {[%emt 0:00:00]} Nxg4 {[%emt 0:00:01]} 18. h3 {[%emt 0:00:00]} Nf6 {[%emt 0:00:46]} 19. Be3 {[%emt 0:00:00]} Rd7 {[%emt 0:01:02]} 20. Rac1 {[%emt 0:00:00]} Rfd8 {[%emt 0:01:02]} 21. Kf1 {[%emt 0:00:00]} h6 {[%emt 0:01:11]} 22. Ke2 {[%emt 0:00:00]} Ne8 {[%emt 0:02:48]} 23. Bd5 {[%emt 0:00:00]} Bd6 {[%emt 0:09:25]} 24. Rc6 {[%emt 0:00:00]} Nf6 {[%emt 0:02:48]} 25. Rxa6 {[%emt 0:00:00]} Nxd5 {[%emt 0:00:27]} 26. exd5 {[%emt 0:00:00]} Bf8 {[%emt 0:04:35]} 27. Rc6 {[%emt 0:00:00]} b4 {[%emt 0:07:02]} 28. b3 {[%emt 0:02:17]} Ra8 {[%emt 0:02:08]} 29. Rd2 {[%emt 0:00:15]} Ra5 {[%emt 0:01:04]} 30. Rdc2 {[%emt 0:01:19]} Raxd5 {[%emt 0:00:29]} 31. Rxc7 {[%emt 0:02:43]} Rxd3 {[%emt 0:01:06]} 32. Rxd7 {[%emt 0:00:06]} Rxd7 {[%emt 0:00:06]} 33. Rc8 {[%emt 0:01:29]} Rd5 {[%emt 0:04:49]} 34. Rb8 {[%emt 0:03:32]} Ra5 {[%emt 0:01:56]} 35. Ke1 {[%emt 0:01:38]} f6 {[%emt 0:02:18]} 36. Bd2 {[%emt 0:00:17]} Kf7 {[%emt 0:00:42]} 37. Bxb4 {[%emt 0:00:59]} Bxb4+ {[%emt 0:00:18]} 38. Rxb4 {[%emt 0:00:05]} Rxa2 {[%emt 0:00:05]} 39. Rb7+ {[%emt 0:00:11]} Kf8 {[%emt 0:00:31]} 40. Kf1 {[%emt 0:00:26]} e4 {[%emt 0:02:19]} 41. g4 {[%emt 0:00:47]} Rb2 {[%emt 0:00:20]} 42. Rb8+ {[%emt 0:00:59]} Kf7 {[%emt 0:00:38]} 43. Rb7+ {[%emt 0:00:14]} Kf8 {[%emt 0:00:11]} 44. Rb4 {[%emt 0:00:25]} Kf7 {[%emt 0:00:15]} 45. Rb7+ {[%emt 0:01:01]} Kf8 {[%emt 0:00:15]} 46. Rb4 {[%emt 0:00:47]} Kf7 {[%emt 0:00:06]} 47. Rxe4 {[%emt 0:00:09]} Rxb3 {[%emt 0:00:04]} 48. Re3 {[%emt 0:00:04]} Rb2 {[%emt 0:00:24]} 49. Kg2 {[%emt 0:00:17]} Rb1 {[%emt 0:01:44]} 50. Re2 {[%emt 0:00:56]} Rb3 {[%emt 0:00:14]} 51. Re3 {[%emt 0:00:31]} Rb1 {[%emt 0:00:10]} 52. f4 {[%emt 0:00:16]} Rb2+ {[%emt 0:00:41]} 53. Kg3 {[%emt 0:00:30]} Rb4 {[%emt 0:00:26]} 54. Kf3 {[%emt 0:01:27]} g6 {[%emt 0:02:18]} 55. Kg3 {[%emt 0:00:15]} 1/2-1/2